[Event "CCT Airthings Masters Play-In 2023"]
[Site "Online"]
[Date "2023.02.03"]
[Round "1"]
[White "attack2mateU"]
[Black "Duda, Jan-Krzysztof"]
[Result "*"]
[ECO "B90"]
[WhiteElo "2566"]
[BlackElo "2729"]
[Annotator "TA"]
[PlyCount "30"]
[EventDate "2023.02.03"]
[EventType "swiss"]
[EventCountry "NET"]
[SourceTitle "playchess.com"]
[Source "ChessBase"]
[SourceQuality "1"]
[TimeControl "600+2"]

{[%evp 10,30,25,-22,23,0,44,47,58,18,14,28,25,27,79,73,75,77,92,57,123,126,118]} 1. e4 {[%emt 0:00:06]} c5 {[%emt 0:00:07]} 2. Nf3 {[%emt 0:00:02][%cal Bg1f3,Bf3d4,Bd4b3][%mdl 32]} d6 {[%emt 0:00:01]} 3. d4 {[%emt 0:00:02]} cxd4 {[%emt 0:00:00]} 4. Nxd4 {[%emt 0:00:01]} Nf6 {[%emt 0:00:00]} 5. Nc3 {[%emt 0:00:01]} a6 {[%emt 0:00:01]} 6. Rg1 {[%emt 0:00:01]} (6. Bg5 {is more appropriate.}) 6... h5 {[%emt 0:00:06] B90: Sicilian Najdorf: Unusual White 6th moves, 6 Be3 Ng4 and 6 Be3 e5.} 7. h3 {[%emt 0:00:03]} Nc6 {[%emt 0:00:50]} 8. Be3 {[%emt 0:00:25]} e5 {[%emt 0:00:41] White is slightly better.} 9. Nb3 {[%emt 0:00:45]} Be6 {[%emt 0:00:03] [#]} 10. Qf3 $5 $146 {[%emt 0:00:00][%mdl 8] An interesting novelty.} ({Predecessor:} 10. Qd2 b5 11. O-O-O Na5 12. Nd5 Nxb3+ 13. axb3 Bxd5 14. exd5 Qc7 15. f4 Nd7 16. g4 hxg4 17. Rxg4 {1-0 Owoc,J (1756)-Siekanska,M (1964) Warsaw Najdorf Memorial op-A 2022 (4)}) 10... Rc8 {[%emt 0:00:16]} 11. O-O-O {[%emt 0:00:06]} Nd7 {[%emt 0:00:56]} (11... Na5 $11 {keeps the balance.}) 12. g4 $16 {[%emt 0:00:27]} h4 {[%emt 0:00:11]} 13. g5 {[%emt 0:00:36] White has more active pieces.} g6 {[%emt 0:00:15]} 14. Kb1 {[%emt 0:00:02]} Na5 {[%emt 0:00:02]} (14... Nb4 $14) 15. Nd5 {[%emt 0:00:33]} Nc4 {[%emt 0:00:11] Weighted Error Value: White=0.13 (very precise) /Black=0.26 (precise)} *

[Event "CCT Airthings Masters Play-In 2023"]
[Site "Online"]
[Date "2023.02.03"]
[Round "1"]
[White "xxysoul6"]
[Black "LevonAronian"]
[Result "*"]
[ECO "D02"]
[WhiteElo "2562"]
[BlackElo "2790"]
[Annotator "TA"]
[PlyCount "31"]
[EventDate "2023.02.03"]
[EventType "swiss"]
[EventCountry "NET"]
[SourceTitle "playchess.com"]
[Source "ChessBase"]
[SourceQuality "1"]
[TimeControl "600+2"]

{[%evp 10,31,0,-2,12,-33,-27,-41,-29,-27,-24,-33,0,-5,0,-13,45,-15,-18,-42,-11,-14,-8,-18]} 1. d4 {[%emt 0:00:06]} d5 {[%emt 0:00:04]} 2. Nf3 {[%emt 0:00:02]} Nf6 {[%emt 0:00:02]} 3. Bf4 {[%emt 0:00:01]} c5 {[%emt 0:00:03]} 4. e3 {[%emt 0:00:03]} Nc6 {[%emt 0:00:12]} 5. c3 {[%emt 0:00:01]} Qb6 {[%emt 0:00:22]} 6. Qc2 {[%emt 0:00:01]} Nh5 {[%emt 0:00:13] D02: 1 d4 d5 2 Nf3 sidelines, including 2...Nf6 3 g3 and 2...Nf6 3 Bf4.} 7. Bg5 {[%emt 0:00:29]} h6 {[%emt 0:00:13]} 8. Bh4 {[%emt 0:00:02]} g5 {[%emt 0:00:06] [#] And now ...cxd4 would win. Black is slightly better.} 9. Bg3 {[%emt 0:00:01] [#]} cxd4 $146 {[%emt 0:00:08]} ({Predecessor:} 9... Nxg3 10. hxg3 Bg7 11. Nbd2 Bd7 12. dxc5 Qxc5 13. Bd3 O-O-O 14. a4 Kb8 15. a5 Rc8 {½-½ Garcia Palermo,C (2426)-Vocaturo,D (2610) ITA-chT T9 51st 2019 (1.1)}) 10. exd4 {[%emt 0:00:18]} Bg4 {[%emt 0:00:10]} 11. Nbd2 {[%emt 0:00:04]} e6 {[%emt 0:00:02]} 12. Bd3 {[%emt 0:00:05]} Be7 {[%emt 0:00:23]} (12... Bg7 $11) 13. Qb3 {[%emt 0:01:01]} (13. Ne5 $14 Nxe5 14. Bxe5) 13... Bf5 $11 {[%emt 0:00:39]} 14. Be2 {[%emt 0:00:44]} f6 {[%emt 0:00:35]} 15. Qxb6 {[%emt 0:01:04]} axb6 {[%emt 0:00:01]} 16. Bc7 {[%emt 0:00:01] Weighted Error Value: White=0.14 (very precise) /Black=0.19 (very precise)} *

[Event "CCT Airthings Masters Play-In 2023"]
[Site "Online"]
[Date "2023.02.03"]
[Round "1"]
[White "Arseniy_Nesterov"]
[Black "Zkid"]
[Result "*"]
[ECO "A90"]
[WhiteElo "2558"]
[BlackElo "2722"]
[Annotator "TA"]
[PlyCount "25"]
[EventDate "2023.02.03"]
[EventType "swiss"]
[EventCountry "NET"]
[SourceTitle "playchess.com"]
[Source "ChessBase"]
[SourceQuality "1"]
[TimeControl "600+2"]

{[%evp 13,25,13,16,16,19,16,25,18,21,0,0,0,0,-27]} 1. d4 {[%emt 0:00:03]} e6 {[%emt 0:00:48]} 2. c4 {[%emt 0:00:01]} f5 {[%emt 0:00:03]} 3. Nf3 {[%emt 0:00:03][%cal Bg1f3,Bf3e1,Be1d3][%mdl 32]} Nf6 {[%emt 0:00:07]} 4. g3 {[%emt 0:00:02]} d5 {[%emt 0:00:02]} 5. Bg2 {[%emt 0:00:01]} Bd6 {[%emt 0:00:03]} 6. O-O {[%emt 0:00:09]} c6 {[%emt 0:00:08]} 7. Nbd2 {[%emt 0:00:02]} Nbd7 {[%emt 0:00:48]} 8. Ne1 {[%emt 0:00:03] A90: Dutch Defence: Miscellaneous and Modern Stonewall (with ...Bd6).} O-O {[%emt 0:00:13]} 9. Nd3 {[%emt 0:00:02]} b6 {[%emt 0:00:24]} 10. b4 {[%emt 0:00:04]} a5 {[%emt 0:01:17] The position is equal.} 11. b5 {[%emt 0:00:56]} cxb5 {[%emt 0:00:44] [#]} 12. cxb5 $146 {[%emt 0:00:03]} ({Predecessor:} 12. cxd5 exd5 13. Qb3 Kh8 14. Qxb5 Ba6 15. Qb2 Re8 16. Nf3 Qe7 17. Re1 Ne4 18. a4 {0-1 Slipak,S (2452)-Claverie,R (2374) ARG-ch sf 84th 2009 (7)}) 12... Ne4 {[%emt 0:00:16]} 13. Nxe4 {[%emt 0:01:03] Not much happened in this game.   Weighted Error Value: White=0.07 (flawless) /Black=0.00 (flawless)} *

[Event "CCT Airthings Masters Play-In 2023"]
[Site "Online"]
[Date "2023.02.03"]
[Round "1"]
[White "Indianlad"]
[Black "GHANDEEVAM"]
[Result "1/2-1/2"]
[ECO "D46"]
[WhiteElo "2543"]
[BlackElo "2714"]
[Annotator "TA"]
[PlyCount "103"]
[EventDate "2023.02.03"]
[EventType "swiss"]
[EventCountry "NET"]
[SourceTitle "playchess.com"]
[Source "ChessBase"]
[SourceQuality "1"]
[TimeControl "600+2"]

{[%evp 20,103,11,5,32,0,0,0,0,0,0,-15,0,0,0,0,10,1,18,0,0,0,0,0,0,0,0,0,20,-38,0,0,0,0,0,0,30,0,0,0,0,0,0,-16,-11,0,0,0,0,0,0,0,73,0,0,0,0,0,0,0,0,0,0,0,0,0,0,0,0,0,0,0,0,0,0,0,0,0,0,0,0,0,0,0,0,0]} 1. d4 {[%emt 0:00:04]} d5 {[%emt 0:00:06]} 2. Nf3 {[%emt 0:00:02]} Nf6 {[%emt 0:00:01]} 3. c4 {[%emt 0:00:00]} e6 {[%emt 0:00:00]} 4. Nc3 {[%emt 0:00:03]} c6 {[%emt 0:00:03]} 5. e3 {[%emt 0:00:13]} Nbd7 {[%emt 0:00:02]} 6. Be2 {[%emt 0:00:01]} Bd6 {[%emt 0:00:01]} 7. O-O {[%emt 0:00:01]} O-O {[%emt 0:00:02]} 8. Qc2 {[%emt 0:00:11]} dxc4 {[%emt 0:00:05]} 9. a4 {[%emt 0:00:01]} a6 {[%emt 0:00:18]} 10. Bxc4 {[%emt 0:00:04]} c5 {[%emt 0:00:01]} 11. Rd1 {[%emt 0:00:06]} Qc7 $1 {[%emt 0:00:02][%mdl 4] outshines the older 11...cxd4. D46: Semi-Slav: 5 e3 Nbd7 6 Bd3, Black avoids the Meran.} 12. Bd3 {[%emt 0:00:18]} cxd4 {[%emt 0:00:19]} 13. exd4 {[%emt 0:00:04]} b6 {[%emt 0:00:01]} 14. Qe2 $1 {[%emt 0:00:33]} Bb7 {[%emt 0:00:05]} 15. h3 {[%emt 0:00:00] [#]} Qc6 $146 {[%emt 0:01:23]} ({Predecessor:} 15... Bf4 16. Be3 Bxe3 17. fxe3 e5 18. Rac1 exd4 19. exd4 Rfe8 20. Qf2 Qd6 21. Bc4 Rac8 {1-0 Gavrilov,A (2456)-Yagupov,I (2405) Olomouc GM 19th 2016 (3)}) 16. Be3 {[%emt 0:01:03]} Bc7 {[%emt 0:00:11]} 17. Rac1 {[%emt 0:00:11][%cal Oc3e4] [#] And now Ne4! would win.} Qd6 {[%emt 0:00:01]} 18. Bg5 {[%emt 0:00:09]} h6 {[%emt 0:01:58]} 19. Bxf6 {[%emt 0:00:03]} (19. Bh4 $5 {[%cal Rh4g3]} Bxf3 20. Qxf3 Qh2+ 21. Kf1 $11) 19... Bxf3 {[%emt 0:00:13]} (19... gxf6 $2 20. Ne4 Bxe4 21. Bxe4 $18 (21. Qxe4 f5 $16)) 20. Qxf3 {[%emt 0:00:02]} Qh2+ {[%emt 0:00:00]} (20... gxf6 $2 21. g3 (21. Qe4 f5 $11) 21... f5 22. Qe2 $16) 21. Kf1 {[%emt 0:00:02]} Nxf6 {[%emt 0:00:00]} 22. Ne4 {[%emt 0:00:31]} Nd5 {[%emt 0:00:03]} 23. Ng3 {[%emt 0:00:50] Strongly threatening Ke2.} Bf4 {[%emt 0:00:32]} 24. Rb1 {[%emt 0:00:43] White is weak on the dark squares} (24. Ke2 $11 Bxc1 25. Rxc1) 24... f5 {[%emt 0:01:05][%cal Bf7f5,Bf5f4][%mdl 32]} 25. Ke2 {[%emt 0:00:42]} Bxg3 {[%emt 0:00:03]} 26. fxg3 {[%emt 0:00:01] [#] Hoping for Rh1.} f4 $1 {[%emt 0:00:02]} 27. g4 {[%emt 0:00:03]} Rad8 {[%emt 0:00:34]} 28. Be4 {[%emt 0:00:18]} Nf6 {[%emt 0:00:12] aiming for ...Nxe4.} ({Much less strong is} 28... Ne3 29. Rh1 Qxg2+ 30. Qxg2 $16) 29. Bc6 {[%emt 0:00:11]} Rd6 {[%emt 0:00:19]} 30. Rbc1 {[%emt 0:00:14]} Rfd8 {[%emt 0:00:07]} 31. Qf2 {[%emt 0:01:02]} h5 {[%emt 0:00:54]} 32. g5 {[%emt 0:00:15]} Rxc6 {[%emt 0:00:02]} 33. gxf6 {[%emt 0:00:22]} (33. Rxc6 $5 Ne4 $8 34. Qf3 Nxg5 35. Qf2 $11 (35. Qxh5 Qxg2+ 36. Kd3 Qxc6 37. Qg4 Rc8 38. Qxf4 Qc2+ 39. Ke3 Qxd1 40. Qg4 Qc1+ 41. Kd3 Qxb2 42. Ke3 Rc3+ {[%mdl 64] Skewer} 43. Kf4 Qf2+ 44. Ke5 Qf6+ 45. Kd6 Qd8+ 46. Ke5 Qc7#)) 33... Rdc8 {[%emt 0:00:07]} 34. Rxc6 {[%emt 0:00:03]} (34. f7+ {seems wilder.} Kf8 35. Rxc6 Rxc6 36. Kd3) 34... Rxc6 {[%emt 0:00:00]} 35. fxg7 {[%emt 0:00:03]} Kxg7 $11 {[%emt 0:00:16][%mdl 4096] Endgame KQR-KQR} (35... Rc7 $11) 36. d5 {[%emt 0:00:09]} ({White should play} 36. Kd3 $16) 36... Rc2+ {[%emt 0:00:08] The position is equal.} 37. Rd2 {[%emt 0:00:01]} Rxd2+ {[%emt 0:00:00]} 38. Kxd2 {[%emt 0:00:01]} exd5 {[%emt 0:00:00] KQ-KQ} 39. Qd4+ {[%emt 0:00:01]} (39. Qxb6 Qxg2+ 40. Ke1 Qxh3 41. Qd4+ Kg6 42. Qxf4 Qf5 43. Qd6+ Kg5 $17) 39... Kg6 {[%emt 0:00:24]} 40. Qxd5 {[%emt 0:00:04]} Qg3 {[%emt 0:00:13]} 41. Qe6+ {[%emt 0:01:13]} Kh7 {[%emt 0:00:07]} 42. Qf7+ {[%emt 0:00:09]} Kh6 {[%emt 0:00:01]} 43. Qf8+ {[%emt 0:00:04]} Kh7 {[%emt 0:00:02]} 44. Qe7+ {[%emt 0:00:01]} Kh6 {[%emt 0:00:01]} 45. Qd6+ {[%emt 0:00:03]} Kg5 {[%emt 0:00:18]} 46. Qe7+ {[%emt 0:00:05]} Kf5 {[%emt 0:00:17]} 47. Qd7+ {[%emt 0:00:05]} Ke5 {[%emt 0:00:05]} 48. Qe7+ {[%emt 0:00:06]} Kd5 {[%emt 0:00:08]} 49. Qd7+ {[%emt 0:00:01]} Kc4 {[%emt 0:00:21]} 50. Qe6+ {[%emt 0:00:14]} Kc5 {[%emt 0:00:01]} 51. Qe7+ {[%emt 0:00:09]} Kd5 {[%emt 0:00:03]} 52. Qd7+ {[%emt 0:00:01] An even fight not without its subleties.   Weighted Error Value: White=0.08 (flawless) /Black=0.08 (flawless)} 1/2-1/2

[Event "CCT Airthings Masters Play-In 2023"]
[Site "Online"]
[Date "2023.02.03"]
[Round "1"]
[White "vugarrasulov"]
[Black "FabianoCaruana"]
[Result "0-1"]
[ECO "B22"]
[WhiteElo "2538"]
[BlackElo "2702"]
[Annotator "TA"]
[PlyCount "98"]
[EventDate "2023.02.03"]
[EventType "swiss"]
[EventCountry "NET"]
[SourceTitle "playchess.com"]
[Source "ChessBase"]
[SourceQuality "1"]
[TimeControl "600+2"]

{[%evp 15,98,0,7,0,0,3,5,-7,-5,-8,0,-34,-39,-36,-36,-57,-32,-35,-17,-35,-37,-66,0,0,0,-15,-8,-30,-5,-16,0,-57,-58,-73,-67,-91,-68,-512,-148,-143,-137,-143,-82,-136,-139,-229,-228,-237,-237,-245,-242,-239,-241,-271,-276,-281,-195,-229,-165,-165,-165,-197,-111,-165,-110,-170,-173,-165,-165,-255,-252,-277,-273,-262,-250,-259,-235,-536,-525,-614,-609,-589,-577,-1079,-1055]} 1. e4 {[%emt 0:00:04][%cal Be2e4,Be4e5][%mdl 32]} c5 {[%emt 0:00:04]} 2. Nf3 {[%emt 0:00:03]} Nc6 {[%emt 0:00:01]} 3. c3 {[%emt 0:00:04]} Nf6 {[%emt 0:00:04][%cal Bg8f6,Bf6d5,Bd5b4,Bb4c2][%mdl 32]} 4. e5 {[%emt 0:00:02]} Nd5 {[%emt 0:00:01]} 5. d4 {[%emt 0:00:09]} cxd4 {[%emt 0:00:02]} 6. cxd4 {[%emt 0:00:01]} d6 {[%emt 0:00:02]} 7. Bc4 {[%emt 0:00:14]} dxe5 {[%emt 0:00:41]} 8. dxe5 {[%emt 0:00:16]} Ndb4 {[%emt 0:00:28]} 9. O-O {[%emt 0:00:17] seems to push 9.Qb3 aside. B22: Sicilian: 2 c3.} Qxd1 {[%emt 0:00:40]} 10. Rxd1 {[%emt 0:00:00]} Bg4 {[%emt 0:00:01] [#]} (10... Nc2 11. Na3 Nxa3 12. bxa3 $14) 11. e6 $1 {[%emt 0:00:50] The position is equal.} fxe6 {[%emt 0:00:49] Threatens to win with ...Nc2.} 12. Nc3 {[%emt 0:00:12][%cal Bb1c3,Bc3e4,Be4c5][%mdl 32] [#]} a6 $146 {[%emt 0:00:12]} ({Predecessor:} 12... Rc8 13. h3 Bxf3 14. gxf3 Kf7 15. Ne4 h6 16. Nc5 Nd4 17. Rxd4 Rxc5 18. Rf4+ Ke8 19. Bxe6 {1-0 Vajda,L (2534)-Ioannidis,E (2459) Titled Tuesday intern op 24th May Early blitz 2022 (2)}) 13. a3 {[%emt 0:00:44]} Nc2 {[%emt 0:00:03]} 14. Ra2 {[%emt 0:00:28]} g6 {[%emt 0:00:11]} 15. Ne4 {[%emt 0:01:01]} b5 {[%emt 0:00:53]} 16. Be2 {[%emt 0:00:39]} Bg7 {[%emt 0:00:57]} (16... Bf5 $5 {[%cal Rf5e4]} 17. Nc5 Bg7 $11) 17. Nc5 {[%emt 0:00:20] And now b3 would win.} Rc8 {[%emt 0:00:54]} 18. b4 {[%emt 0:00:18]} Bxf3 {[%emt 0:00:27]} (18... N6xb4 $15 19. axb4 Nxb4 20. Rxa6 (20. Nxa6 $2 Nxa2 21. Bxb5+ Kf8 $19) 20... Rxc5) 19. Bxf3 $11 {[%emt 0:00:04]} (19. Rxc2 {simplifies} Bxe2 20. Rxe2 e5 21. Ree1) 19... N2d4 {[%emt 0:00:06]} 20. Bg4 {[%emt 0:00:17]} Kf7 {[%emt 0:00:12]} 21. Rad2 {[%emt 0:00:58]} (21. Nxa6 Ne5 22. Bh3 Rhd8 $15) 21... Nf5 {[%emt 0:00:47]} 22. Nxa6 {[%emt 0:00:28]} Ne5 {[%emt 0:00:04]} 23. Be2 {[%emt 0:00:07]} (23. Bxf5 $1 $11 exf5 24. Bb2) 23... Bh6 $15 {[%emt 0:00:05]} 24. Bb2 {[%emt 0:00:38]} Bxd2 {[%emt 0:00:05]} 25. Bxe5 {[%emt 0:00:37] A strong pair of Bishops.} Rhd8 {[%emt 0:00:03] Strongly threatening ...Rd5.} 26. Bxb5 $2 {[%emt 0:00:21][%mdl 8192]} ({White should try} 26. g4 $15 Nh4 27. Bc7 (27. Bxb5 $2 {loses.} Nf3+ 28. Kg2 Nxe5 $19)) 26... Rd5 $2 {[%emt 0:00:22]} (26... Bf4 $19 27. Rf1 (27. Rxd8 {gets mated.} Rc1+ 28. Bf1 Ne3) 27... Bxe5) 27. Nc5 $17 {[%emt 0:00:27][%cal Og2g3]} Rxe5 {[%emt 0:01:31]} 28. Rxd2 {[%emt 0:00:02]} Re1+ {[%emt 0:00:01]} 29. Bf1 {[%emt 0:00:02]} Ra1 $1 {[%emt 0:00:00]} 30. a4 {[%emt 0:00:20]} (30. g4 $17 Nd6 31. Rd3) 30... Rb1 $19 {[%emt 0:00:03]} 31. Nd3 {[%emt 0:00:09]} Rc3 $1 {[%emt 0:00:09] Hoping for ...Nd6.} 32. g3 {[%emt 0:00:27]} Ra3 $1 {[%emt 0:00:01][%cal Oa3a1] ...Raa1! would be deadly.} 33. Kg2 {[%emt 0:00:02]} Rxa4 {[%emt 0:00:05]} 34. Be2 {[%emt 0:00:02]} Kf6 {[%emt 0:00:07]} 35. h4 {[%emt 0:00:03]} Nd6 {[%emt 0:00:09]} 36. Bg4 {[%emt 0:00:04]} h5 {[%emt 0:00:15]} 37. Bxe6 {[%emt 0:00:03] [#]} Raa1 $1 {[%emt 0:00:07]} ({Weaker is} 37... Kxe6 38. Nc5+ Kf5 39. Rd5+ e5 40. Nxa4 Rxb4 41. Rxd6 $11) 38. Bd5 {[%emt 0:00:03]} e5 {[%emt 0:00:04]} (38... Rd1 $19 39. Rxd1 Rxd1) 39. Nc5 {[%emt 0:00:03] [#]} (39. Kf3 $17 {is a better defense.}) 39... Rg1+ {[%emt 0:00:08]} ({Black should play} 39... Rd1 $1 $19 {[%cal Rd1d2]} 40. Rxd1 Rxd1) 40. Kh2 {[%emt 0:00:04]} (40. Kf3 $17 {was necessary.}) 40... Rgd1 {[%emt 0:00:05]} 41. Rxd1 {[%emt 0:00:06]} Rxd1 {[%emt 0:00:00][%mdl 4096] Endgame KRN-KBN} 42. Bb3 {[%emt 0:00:06]} (42. Ne4+ $142 Nxe4 43. Bxe4) 42... Rd2 {[%emt 0:00:05]} 43. Kg2 {[%emt 0:00:00]} e4 {[%emt 0:00:02] White must now prevent ...e3.} 44. Kf1 {[%emt 0:00:03]} Rb2 {[%emt 0:00:02]} 45. Ke1 {[%emt 0:00:04]} Ke5 {[%emt 0:00:02]} 46. Bg8 $2 {[%emt 0:00:06]} (46. Kf1) 46... Rxb4 {[%emt 0:00:10] Black is clearly winning.} 47. Bh7 {[%emt 0:00:01]} Kf6 {[%emt 0:00:06]} 48. Bg8 {[%emt 0:00:08]} Rb5 {[%emt 0:00:02]} 49. Nd7+ {[%emt 0:00:00]} Ke7 {[%emt 0:00:01][%mdl 64] Trapped Piece.   Weighted Error Value: White=0.50/Black=0.30} 0-1

[Event "CCT Airthings Masters Play-In 2023"]
[Site "Online"]
[Date "2023.02.03"]
[Round "1"]
[White "KantorGergely"]
[Black "Lazavik, Denis"]
[Result "0-1"]
[ECO "E11"]
[WhiteElo "2535"]
[BlackElo "2541"]
[Annotator "TA"]
[PlyCount "98"]
[EventDate "2023.02.03"]
[EventType "swiss"]
[EventCountry "NET"]
[SourceTitle "playchess.com"]
[Source "ChessBase"]
[SourceQuality "1"]
[TimeControl "600+2"]

{[%evp 12,98,16,0,27,18,0,0,0,0,0,-25,-18,-43,-8,-54,-58,-58,-56,-106,-103,-109,-105,-85,-95,-107,-88,-85,-92,-82,-53,-55,-69,-50,-46,-93,-91,-93,-86,-90,-68,-71,-68,-80,-77,-135,-74,-78,-77,-56,-64,-79,-64,-109,-106,-102,-102,-179,-167,-170,-178,-270,-271,-242,-183,-155,-152,-426,-426,-426,-426,-513,-506,-568,-558,-1051,-1043,-1007,-992,-939,-881,-29993,-29994,-29994,-29995,-29995,-359,-29996,-29987]} 1. d4 {[%emt 0:06:20]} Nf6 {[%emt 0:00:05]} 2. c4 {[%emt 0:00:02]} e6 {[%emt 0:00:01]} 3. Nf3 {[%emt 0:00:01]} d5 {[%emt 0:00:01]} 4. g3 {[%emt 0:00:01]} Bb4+ {[%emt 0:00:04]} 5. Bd2 {[%emt 0:00:02]} a5 {[%emt 0:00:02]} 6. Bg2 {[%emt 0:00:01]} O-O {[%emt 0:00:02]} 7. Qc2 {[%emt 0:00:03]} c5 {[%emt 0:00:01] E11: Bogo-Indian.} 8. O-O {[%emt 0:00:01]} cxd4 {[%emt 0:00:05]} 9. Nxd4 {[%emt 0:00:02]} Nc6 {[%emt 0:00:02] The position is equal.} 10. Nxc6 {[%emt 0:00:07]} bxc6 {[%emt 0:00:00] [#]} 11. Nc3 $146 {[%emt 0:00:00]} ({Predecessor:} 11. a3 Bxd2 12. Nxd2 Ba6 13. Rfc1 Qb6 14. e3 Rab8 15. Rab1 h5 16. b4 axb4 17. axb4 {1-0 Harshavardhan,G (2367)-Zia,T (2307) Titled Tuesday intern op 03rd May Early blitz 2022 (7)}) 11... Ba6 {[%emt 0:00:05]} 12. b3 {[%emt 0:00:21]} Qe7 {[%emt 0:00:21]} 13. a3 {[%emt 0:00:10]} Bxa3 $15 {[%emt 0:00:14]} 14. Na4 {[%emt 0:00:10]} Bb4 {[%emt 0:00:06]} 15. Nb6 {[%emt 0:00:12]} (15. Nb2 $15) 15... Rab8 $17 {[%emt 0:00:13]} 16. Bxb4 {[%emt 0:00:05][%mdl 64] Remove Defender} Qxb4 {[%emt 0:00:00]} 17. c5 {[%emt 0:00:01] [#]} Bb5 {[%emt 0:00:17] Dodges Ra4} 18. Ra2 {[%emt 0:00:15]} d4 {[%emt 0:00:20]} 19. Rfa1 {[%emt 0:00:04]} Rbd8 {[%emt 0:00:07]} 20. Rxa5 {[%emt 0:00:05]} d3 {[%emt 0:00:03]} 21. exd3 {[%emt 0:00:02]} Bxd3 {[%emt 0:00:09]} 22. Qb2 {[%emt 0:00:09]} Bb5 {[%emt 0:00:05] Hoping for ...Rd2.} 23. R5a2 {[%emt 0:00:14]} (23. Qa3 $15 Qd4 24. Bf3) 23... Qxc5 {[%emt 0:00:04]} 24. Na4 {[%emt 0:00:06]} Qb4 {[%emt 0:00:11] Black has more active pieces.} 25. Qc3 {[%emt 0:00:00] Inhibits Rd3.} Qg4 {[%emt 0:00:09] [#] And now ...Rd1+ would win.} 26. h3 {[%emt 0:00:04]} Qf5 {[%emt 0:00:10]} 27. Nc5 {[%emt 0:00:02]} h5 {[%emt 0:00:04][%cal Oh5h4]} 28. b4 {[%emt 0:00:05]} (28. h4 $142) 28... Rd6 {[%emt 0:00:18]} ({Black should play} 28... h4 29. Qe1 Rfe8) 29. Ra8 {[%emt 0:00:04]} Rxa8 {[%emt 0:00:29]} 30. Rxa8+ {[%emt 0:00:02]} Kh7 {[%emt 0:00:01] ( -> ...Rd1+)} 31. Ra1 {[%emt 0:00:07] Prevents Rd1+} g6 {[%emt 0:00:26]} 32. Bf3 {[%emt 0:00:28]} e5 {[%emt 0:00:21][%cal Od6d3]} 33. Re1 {[%emt 0:00:03]} Rd4 {[%emt 0:00:08]} (33... Qxh3 $2 34. Qxe5 Qf5 35. Qxd6 $18) 34. Qe3 {[%emt 0:00:17]} (34. Bg2 $17) 34... Rxb4 $19 {[%emt 0:00:12]} ({Don't take} 34... Qxh3 35. Qxe5 $16) 35. Bg2 {[%emt 0:00:15]} Rb1 {[%emt 0:00:19]} 36. Rxb1 {[%emt 0:00:06]} (36. Nb7 $142) 36... Qxb1+ {[%emt 0:00:01]} 37. Kh2 {[%emt 0:00:01]} Qf5 {[%emt 0:00:01]} 38. Nb7 {[%emt 0:00:02]} Qe6 {[%emt 0:00:11] Inhibits Nd6.} 39. Nd8 $2 {[%emt 0:00:05] White does not recover from this.} (39. Qa3 $17) 39... Qd7 {[%emt 0:00:05]} 40. Qb6 {[%emt 0:00:12]} e4 {[%emt 0:00:02]} 41. Nb7 {[%emt 0:00:03]} Nd5 {[%emt 0:00:22]} 42. Qa7 {[%emt 0:00:01]} Qe7 {[%emt 0:00:01]} 43. Qb8 {[%emt 0:00:06]} e3 {[%emt 0:00:03]} 44. fxe3 {[%emt 0:00:00]} Nxe3 {[%emt 0:00:00]} 45. Nd6 {[%emt 0:00:07]} Nxg2 {[%emt 0:00:04]} 46. Kxg2 {[%emt 0:00:24]} Qe2+ {[%emt 0:00:04]} 47. Kg1 {[%emt 0:00:01]} Qf1+ {[%emt 0:00:01]} 48. Kh2 {[%emt 0:00:01]} Qf2+ {[%emt 0:00:01]} 49. Kh1 {[%emt 0:00:01]} Be2 {[%emt 0:00:01] Weighted Error Value: White=0.41/Black=0.07 (flawless)} 0-1